bitfinex-derivatives/quotes_BTCF0:USTF0_20250406
["timestamp","ask_amount","ask_price","bid_price","bid_amount"]
[1743947878746,0.1415511,82296.0,82295.0,0.1441321]
[1743947879641,0.1415511,82296.0,82295.0,0.05904]
[1743947879844,0.4115511,82296.0,82295.0,0.1434921]
[1743947880044,0.1415511,82296.0,82295.0,0.1441321]
[1743947881038,0.3915511,82296.0,82295.0,0.1441321]
[1743947881343,0.1415511,82296.0,82295.0,0.1441321]
[1743947881544,0.3715511,82296.0,82295.0,0.00664]
[1743947881733,0.3715511,82296.0,82295.0,0.006]
[1743947882138,0.3715511,82296.0,82295.0,0.0910921]
[1743947882339,0.3715511,82296.0,82295.0,0.0917321]
[1743947883238,0.1415511,82296.0,82295.0,0.0910921]
[1743947883444,0.3715511,82296.0,82295.0,0.0918521]
[1743947883646,0.1415511,82296.0,82295.0,0.0910921]
[1743947883838,0.1415511,82296.0,82295.0,0.0917321]
[1743947884545,0.00076,82296.0,82295.0,0.2417321]
[1743947884848,0.00018219,82305.0,82304.0,0.0850828]
[1743947885036,0.00090219,82305.0,82304.0,0.0858028]
[1743947885741,0.00090219,82305.0,82304.0,0.1915028]
[1743947886946,0.00090219,82305.0,82304.0,0.1935028]
[1743947887336,0.17896525,82312.0,82309.0,0.0425383]
[1743947887537,0.26495975,82312.0,82311.0,0.0850756]
[1743947887745,0.26495975,82312.0,82311.0,0.0859956]
[1743947887952,0.26495975,82312.0,82311.0,0.1894956]
[1743947889248,0.0859945,82312.0,82311.0,0.1894956]
[1743947890547,0.00092,82312.0,82311.0,0.1894956]
[1743947890847,0.00092,82312.0,82311.0,0.00092]
[1743947890848,0.0859945,82312.0,82311.0,0.00092]
[1743947891047,0.0859945,82312.0,82311.0,0.0850756]
[1743947891352,0.0859945,82312.0,82311.0,0.1952956]
[1743947891850,0.00092,82312.0,82311.0,0.1952956]
[1743947892341,0.0859945,82312.0,82311.0,0.1952956]
[1743947892853,0.00092,82312.0,82311.0,0.1952956]
[1743947894255,0.0859945,82312.0,82311.0,0.1952956]
[1743947894446,0.00092,82312.0,82311.0,0.1952956]
[1743947894948,0.10912,82312.0,82311.0,0.1952956]
[1743947895243,0.1941945,82312.0,82311.0,0.1408956]
[1743947898549,0.1941945,82312.0,82311.0,0.00092]
[1743947898749,0.0850766,82310.0,82309.0,8e-05]
[1743947898945,0.1276299,82302.0,82299.0,0.55121371]
[1743947899245,0.085087,82300.0,82299.0,0.55213371]
[1743947899442,0.085087,82300.0,82299.0,0.5402479]
[1743947900050,0.191887,82300.0,82299.0,0.5960479]
[1743947900249,0.192807,82300.0,82299.0,0.5960479]
[1743947901352,0.00092,82300.0,82299.0,0.5960479]
[1743947901550,0.0850854,82302.0,82301.0,0.0850859]
[1743947901752,0.0850759,82311.0,82307.0,0.0425397]
[1743947901949,0.1918749,82312.0,82311.0,0.0850756]
[1743947902347,0.1927949,82312.0,82311.0,0.0861156]
[1743947902548,0.10772,82312.0,82311.0,0.0861156]
[1743947903145,0.00092,82312.0,82311.0,0.0861156]
[1743947903957,0.0859945,82312.0,82311.0,0.0861156]
[1743947904745,0.00092,82312.0,82311.0,0.0861156]
[1743947905757,0.0859945,82312.0,82311.0,0.0861156]
[1743947906855,0.0859945,82312.0,82311.0,0.00104]
[1743947907056,0.0859945,82312.0,82310.0,8e-05]
[1743947907057,0.0850756,82311.0,82310.0,8e-05]
[1743947907259,0.1967756,82311.0,82310.0,0.001]
[1743947907549,0.1967756,82311.0,82310.0,8e-05]
[1743947908454,0.0850807,82306.0,82305.0,0.0850814]
[1743947908652,0.0850807,82306.0,82305.0,0.00096]
[1743947909048,0.0850818,82305.0,82304.0,8e-05]
[1743947909247,0.1947818,82305.0,82304.0,0.00096]
[1743947909465,0.1947818,82305.0,82304.0,0.0860421]
[1743947910150,0.14371757,82321.0,82304.0,0.00096]
[1743947910455,0.14371757,82321.0,82313.0,0.0850735]
[1743947910659,0.0425353,82316.0,82313.0,0.0859935]
[1743947910854,0.0850721,82315.0,82313.0,0.0859935]
[1743947911248,0.4458725,82314.0,82313.0,0.0859935]
[1743947912350,0.4468725,82314.0,82313.0,0.0859935]
[1743947914258,0.3618,82314.0,82313.0,0.0859935]
[1743947914760,0.4468725,82314.0,82313.0,0.0859935]
[1743947915357,0.4478725,82314.0,82313.0,0.0859935]
[1743947916447,0.4478725,82314.0,82313.0,0.1399935]
[1743947917553,0.4478725,82314.0,82313.0,0.1439935]
[1743947917756,0.4478725,82314.0,82313.0,0.1991935]
[1743947918057,0.4468725,82314.0,82313.0,0.1991935]
[1743947918257,0.4478725,82314.0,82313.0,0.2041935]
[1743947918957,0.0870725,82314.0,82313.0,0.2041935]
[1743947919851,0.002,82314.0,82313.0,0.2001935]
[1743947920051,0.002,82314.0,82313.0,0.2041935]
[1743947920756,0.001,82314.0,82313.0,0.1991935]
[1743947920950,0.002,82314.0,82313.0,0.2041935]
[1743947921956,0.001,82314.0,82313.0,0.2041935]
[1743947922258,0.00018219,82320.0,82319.0,0.0850673]
[1743947922460,0.00018219,82320.0,82319.0,0.0859873]
[1743947922650,0.14371757,82322.0,82321.0,0.0850652]
[1743947922852,0.14371757,82322.0,82321.0,0.14206154]
[1743947923062,0.14371757,82322.0,82321.0,1.64298154]
[1743947923260,0.14371757,82322.0,82321.0,1.69898154]
[1743947924459,0.14371757,82322.0,82321.0,1.69998154]
[1743947925761,0.14371757,82322.0,82321.0,1.70298154]
[1743947926356,0.14371757,82322.0,82321.0,1.79390154]
[1743947926756,0.29024744,82330.0,82329.0,0.085057]
[1743947926757,0.11128219,82330.0,82329.0,0.085057]
[1743947927058,0.11220219,82330.0,82329.0,0.085977]
[1743947927652,0.11220219,82330.0,82329.0,0.198277]
[1743947928359,0.11220219,82330.0,82329.0,0.199277]
[1743947931765,0.05620219,82330.0,82329.0,0.21164974]
[1743947931963,0.00018219,82330.0,82329.0,0.57244974]
[1743947933072,0.00018219,82330.0,82329.0,0.66156974]
[1743947933271,0.00018219,82330.0,82329.0,0.51724974]
[1743947933568,0.00018219,82330.0,82329.0,2.01724974]
[1743947933963,0.00018219,82330.0,82329.0,0.51724974]
[1743947934562,0.11068219,82330.0,82329.0,0.51724974]
[1743947934761,0.19573809,82330.0,82329.0,0.144077]
[1743947934962,0.11068219,82330.0,82329.0,0.144077]
[1743947935163,0.11140219,82330.0,82329.0,0.086977]
[1743947936456,0.11140219,82330.0,82329.0,0.142477]
[1743947937970,0.19645809,82330.0,82329.0,0.142477]
[1743947938171,0.11140219,82330.0,82329.0,0.086977]
[1743947940677,0.19645809,82330.0,82329.0,0.086977]
[1743947940871,0.11140219,82330.0,82329.0,0.086977]
[1743947941771,0.11140219,82330.0,82329.0,0.143377]
[1743947941972,0.19645809,82330.0,82329.0,0.143377]
[1743947942271,0.19645809,82330.0,82329.0,0.05832]
[1743947942473,0.55725809,82330.0,82329.0,0.086977]
[1743947942666,0.55725809,82330.0,82329.0,0.086057]
[1743947943174,0.55725809,82330.0,82329.0,0.086977]
[1743947943574,0.19645809,82330.0,82329.0,0.086977]
[1743947943762,0.55725809,82330.0,82329.0,0.086977]
[1743947943964,0.11140219,82330.0,82329.0,0.086977]
[1743947944158,0.47220219,82330.0,82329.0,0.086977]
[1743947944662,0.55725809,82330.0,82329.0,0.086977]
[1743947944969,0.55725809,82330.0,82329.0,0.00192]
[1743947945166,0.55725809,82330.0,82329.0,0.001]
[1743947945372,0.55725809,82330.0,82329.0,0.086057]
[1743947945566,0.79725809,82330.0,82329.0,0.001]
[1743947946172,0.55725809,82330.0,82329.0,0.001]
[1743947946374,0.80725809,82330.0,82329.0,0.001]
[1743947946575,0.55725809,82330.0,82329.0,0.001]
[1743947946774,0.80725809,82330.0,82329.0,0.001]
[1743947947363,1.03725809,82330.0,82329.0,0.001]
[1743947947564,0.0850621,82324.0,82323.0,8e-05]
[1743947947764,0.3450621,82324.0,82323.0,8e-05]
[1743947947969,0.1275988,82322.0,82321.0,0.0850648]
[1743947948171,0.4883988,82322.0,82321.0,0.0859848]
[1743947948372,0.4883988,82322.0,82321.0,0.0850648]
[1743947948679,0.0850673,82320.0,82319.0,0.0850668]
[1743947948875,0.3150673,82320.0,82319.0,0.0859868]
[1743947949181,0.3786673,82320.0,82319.0,0.0859868]
[1743947949384,0.1951673,82320.0,82319.0,0.0850668]
[1743947949568,0.1101,82320.0,82319.0,0.0860268]
[1743947949973,0.1951663,82320.0,82319.0,0.0860268]
[1743947951068,0.1951663,82320.0,82319.0,0.0880268]
[1743947951683,0.1415663,82320.0,82319.0,0.0880268]
[1743947951874,0.0565,82320.0,82319.0,0.0880268]
[1743947952076,0.1415663,82320.0,82319.0,0.0920268]
[1743947952685,0.0565,82320.0,82319.0,0.0920268]
[1743947952886,0.0565,82320.0,82319.0,0.1447268]
[1743947953383,0.109,82320.0,82319.0,0.1447268]
[1743947954186,0.0565,82320.0,82319.0,0.1447268]
[1743947954485,0.0565,82320.0,82319.0,0.20167373]
[1743947955077,0.0565,82320.0,82319.0,0.1447268]
[1743947955487,0.1415663,82320.0,82319.0,0.1447268]
[1743947956579,0.0565,82320.0,82319.0,0.1447268]
[1743947956980,0.10789621,82325.0,82324.0,0.0850621]
[1743947957180,0.10789621,82325.0,82324.0,0.0859821]
[1743947957784,0.10789621,82325.0,82324.0,0.1986821]
[1743947958184,0.10789621,82325.0,82324.0,0.1996821]
[1743947958488,0.0850601,82326.0,82325.0,0.0850611]
[1743947958688,0.0850601,82326.0,82325.0,0.1986811]
[1743947959685,0.0850601,82326.0,82325.0,0.2006811]
[1743947960290,0.0859801,82326.0,82325.0,0.2006811]
[1743947960990,0.00092,82326.0,82325.0,0.2006811]
[1743947961186,0.0859801,82326.0,82325.0,0.2006811]
[1743947961389,0.00092,82326.0,82325.0,0.2006811]
[1743947962385,0.0859801,82326.0,82325.0,0.2006811]
[1743947962585,0.00092,82326.0,82325.0,0.2006811]
[1743947963893,0.00092,82326.0,82325.0,0.25764401]
[1743947964188,0.0859801,82326.0,82325.0,0.25764401]
[1743947964394,0.0859801,82326.0,82325.0,0.2006811]
[1743947965485,0.1430801,82326.0,82325.0,0.2006811]
[1743947965886,0.05802,82326.0,82325.0,0.2006811]
[1743947966086,0.1430801,82326.0,82325.0,0.1435811]
[1743947966287,0.1983801,82326.0,82325.0,0.1987811]
[1743947967882,0.1983801,82326.0,82325.0,0.1435811]
[1743947968201,0.4483801,82326.0,82325.0,0.00292]
[1743947968490,0.3083801,82326.0,82325.0,0.002]
[1743947968893,0.5483801,82326.0,82325.0,0.002]
[1743947969291,0.3083801,82326.0,82325.0,0.002]
[1743947969894,0.5783801,82326.0,82325.0,0.002]
[1743947970097,0.5483801,82326.0,82325.0,0.002]
[1743947970493,0.3083801,82326.0,82325.0,0.002]
[1743947970693,0.5483801,82326.0,82325.0,0.002]
[1743947970894,0.3083801,82326.0,82325.0,0.002]
[1743947971196,0.5883801,82326.0,82325.0,0.002]
[1743947971396,0.3083801,82326.0,82325.0,0.002]
[1743947971793,0.5783801,82326.0,82325.0,0.002]
[1743947972300,0.5983801,82326.0,82325.0,0.002]
[1743947972902,0.3083801,82326.0,82325.0,0.002]
[1743947973293,0.5883801,82326.0,82325.0,0.002]
[1743947973494,0.5383801,82326.0,82325.0,0.002]
[1743947973694,0.3083801,82326.0,82325.0,0.0870611]
[1743947974705,0.3159801,82326.0,82325.0,0.0870611]
[1743947974897,0.22989401,82326.0,82325.0,0.1999811]
[1743947975098,0.22989401,82326.0,82325.0,1.6999811]
[1743947975300,0.22989401,82326.0,82325.0,0.1999811]
[1743947975505,0.14483391,82326.0,82325.0,0.1999811]
[1743947975805,0.22989401,82326.0,82325.0,0.1999811]
[1743947975999,0.49989401,82326.0,82325.0,0.1999811]
[1743947976202,0.49989401,82326.0,82325.0,0.2557811]
[1743947976203,0.22989401,82326.0,82325.0,0.2557811]
[1743947976604,0.50989401,82326.0,82325.0,0.17072]
[1743947976803,0.22989401,82326.0,82325.0,0.1698]
[1743947976998,0.22989401,82326.0,82325.0,0.17072]
[1743947977194,0.28669401,82326.0,82325.0,0.17072]
[1743947977697,0.1427801,82326.0,82325.0,0.17072]
[1743947978609,0.0859801,82326.0,82325.0,0.17072]
[1743947979206,0.3159801,82326.0,82325.0,0.17072]
[1743947979600,0.1434801,82326.0,82325.0,0.17072]
[1743947979794,0.0859801,82326.0,82325.0,0.17072]
[1743947981309,0.1434801,82326.0,82325.0,0.11652]
[1743947981614,0.3834801,82326.0,82325.0,0.0578]
[1743947981811,0.3734801,82326.0,82325.0,0.0578]
[1743947982495,0.6634801,82326.0,82325.0,0.0578]
[1743947982699,0.3734801,82326.0,82325.0,0.002]
[1743947983201,0.6234801,82326.0,82325.0,0.002]
[1743947983400,0.3734801,82326.0,82325.0,0.002]
[1743947983907,0.6134801,82326.0,82325.0,0.002]
[1743947984207,0.3834801,82326.0,82325.0,0.002]
[1743947985207,0.1434801,82326.0,82325.0,0.002]
[1743947985402,0.4134801,82326.0,82325.0,0.002]
[1743947985898,0.1434801,82326.0,82325.0,0.002]
[1743947986208,0.1434801,82326.0,82325.0,0.00292]
[1743947986403,0.1434801,82326.0,82325.0,0.0599]
[1743947986603,0.1434801,82326.0,82325.0,0.1459211]
[1743947986810,0.1434801,82326.0,82325.0,0.06086]
[1743947987310,0.4034801,82326.0,82325.0,0.06086]
[1743947987503,0.4034801,82326.0,82325.0,0.0599]
[1743947987814,0.1434801,82326.0,82325.0,0.0599]
[1743947988211,0.4034801,82326.0,82325.0,0.06086]
[1743947988410,0.3834801,82326.0,82325.0,0.06086]
[1743947988618,0.1434801,82326.0,82325.0,0.06086]
[1743947988914,0.3934801,82326.0,82325.0,0.06086]
[1743947989212,0.1434801,82326.0,82325.0,0.06086]
[1743947990016,0.1434801,82326.0,82325.0,0.0599]
[1743947990212,0.1434801,82326.0,82325.0,0.06082]
[1743947990718,0.4234801,82326.0,82325.0,0.06082]
[1743947990916,0.4234801,82326.0,82325.0,0.0599]
[1743947991107,0.1434801,82326.0,82325.0,0.0599]
[1743947991306,0.1434801,82326.0,82325.0,0.06082]
[1743947991715,0.4234801,82326.0,82325.0,0.06082]
[1743947991923,0.4234801,82326.0,82325.0,0.0599]
[1743947992115,0.1434801,82326.0,82325.0,0.0599]
[1743947992412,0.3734801,82326.0,82325.0,0.06082]
[1743947992610,0.52142649,82326.0,82325.0,0.0599]
[1743947992805,0.25142649,82326.0,82325.0,0.0599]
[1743947993014,0.25142649,82326.0,82325.0,0.06082]
[1743947993613,0.51142649,82326.0,82325.0,0.06082]
[1743947993815,0.25142649,82326.0,82325.0,0.06082]
[1743947994410,0.49142649,82326.0,82325.0,0.06082]
[1743947994917,0.52142649,82326.0,82325.0,0.06082]
[1743947996321,0.4134801,82326.0,82325.0,0.06082]
[1743947996622,0.7742801,82326.0,82325.0,0.06082]
[1743947996805,0.7742801,82326.0,82325.0,0.0599]
[1743947997010,0.5042801,82326.0,82325.0,0.0599]
[1743947997210,0.5042801,82326.0,82325.0,0.06082]
[1743947997407,0.5042801,82326.0,82325.0,0.11442]
[1743947997612,0.7442801,82326.0,82325.0,0.11442]
[1743947997816,0.7442801,82326.0,82325.0,0.1135]
[1743947998321,0.7442801,82326.0,82325.0,0.11442]
[1743947998624,0.7442801,82326.0,82325.0,0.1135]
[1743947998917,0.5042801,82326.0,82325.0,0.11442]
[1743947999923,0.5590801,82326.0,82325.0,0.11442]
[1743948000125,0.8090801,82326.0,82325.0,0.11442]
[1743948000517,0.8090801,82326.0,82325.0,0.0599]
[1743948000714,1.0790801,82326.0,82325.0,0.002]
[1743948001018,0.0850714,82315.0,82314.0,0.0546]
[1743948001219,0.3350714,82315.0,82314.0,0.11108955]
[1743948001423,0.0850714,82315.0,82314.0,0.19608205]
[1743948001719,0.0850714,82315.0,82314.0,0.1390725]
[1743948002126,0.3608,82319.0,82316.0,0.0425347]
[1743948002330,0.3608,82333.0,82329.0,0.085057]
[1743948003120,0.17896525,82335.0,82329.0,0.085057]
[1743948003327,0.17896525,82335.0,82329.0,0.25065128]
[1743948003528,0.17896525,82335.0,82329.0,1.75065128]
[1743948003917,0.30654205,82335.0,82329.0,1.75065128]
[1743948004117,0.22149075,82335.0,82329.0,1.75065128]
[1743948004831,0.22149075,82335.0,82329.0,1.75165128]
[1743948005422,0.08523809,82330.0,82329.0,1.75165128]
[1743948005620,0.08523809,82330.0,82329.0,0.194657]
[1743948006528,0.44603809,82330.0,82329.0,0.194657]
[1743948006729,0.80735809,82330.0,82329.0,0.00192]
[1743948007031,0.61445809,82330.0,82329.0,0.001]
[1743948007218,0.55735809,82330.0,82329.0,0.001]
[1743948007425,0.55735809,82330.0,82329.0,0.00196]
[1743948007631,0.55735809,82330.0,82329.0,0.11446]
[1743948007927,0.55735809,82330.0,82329.0,0.199517]
[1743948008122,0.05590219,82330.0,82329.0,0.199517]
[1743948008523,0.14095809,82330.0,82329.0,0.11446]
[1743948008724,0.19655809,82330.0,82329.0,0.199517]
[1743948009131,0.00110219,82330.0,82329.0,0.199517]
[1743948009330,0.05590219,82330.0,82329.0,0.199517]
[1743948009630,0.14095809,82330.0,82329.0,0.199517]
[1743948010720,0.19445809,82330.0,82329.0,0.199517]
[1743948011530,0.10940219,82330.0,82329.0,0.199517]
[1743948011731,0.19445809,82330.0,82329.0,0.199517]
[1743948013829,0.44445809,82330.0,82329.0,0.199517]
[1743948014025,0.43445809,82330.0,82329.0,0.05946]
[1743948014231,0.43445809,82330.0,82329.0,0.001]
[1743948017926,0.47445809,82330.0,82329.0,0.001]
[1743948019531,0.75445809,82330.0,82329.0,0.001]
[1743948019729,0.75445809,82330.0,82322.0,8e-05]
[1743948019730,0.0425302,82326.0,82322.0,8e-05]
[1743948020033,0.0425302,82326.0,82317.0,0.0425344]
[1743948020034,0.0850663,82320.0,82319.0,0.0850664]
[1743948020238,0.3657063,82320.0,82319.0,0.0850664]
[1743948020427,0.0850725,82314.0,82313.0,0.3764019]
[1743948020731,0.3457125,82314.0,82313.0,0.4350019]
[1743948020933,0.3357125,82314.0,82313.0,0.4349219]
[1743948021433,0.8105125,82314.0,82313.0,0.2922496]
[1743948021831,0.8105125,82314.0,82311.0,8e-05]
[1743948021832,1.0705125,82314.0,82306.0,0.36362661]
[1743948022025,1.0705125,82314.0,82306.0,0.36426661]
[1743948022026,0.4458797,82307.0,82306.0,0.36426661]
[1743948022327,0.7065197,82307.0,82306.0,0.36426661]
[1743948022729,0.4465197,82307.0,82306.0,0.44934731]
[1743948022930,0.8056197,82307.0,82306.0,0.36426661]
[1743948024333,0.8056197,82307.0,82306.0,0.36526661]
[1743948024635,0.8056197,82307.0,82306.0,0.00164]
[1743948024636,1.16346817,82307.0,82306.0,0.00164]
[1743948024820,0.085088,82299.0,82293.0,8e-05]
[1743948025024,0.1276399,82294.0,82293.0,0.00072]
[1743948025221,0.3882799,82294.0,82293.0,0.0008]
[1743948025433,0.0850983,82289.0,82288.0,8e-05]
[1743948025622,0.3359383,82289.0,82288.0,8e-05]
[1743948025821,0.0851045,82283.0,82282.0,0.0851054]
[1743948026025,0.0859045,82283.0,82282.0,0.0857454]
[1743948026523,0.3159045,82283.0,82282.0,0.00982328]
[1743948027237,0.1429045,82283.0,82282.0,0.00982328]
[1743948027626,0.3829045,82283.0,82282.0,0.00982328]
[1743948027826,0.1429045,82283.0,82282.0,0.00982328]
[1743948028033,0.1429045,82283.0,82282.0,0.01182328]
[1743948028226,0.1429045,82283.0,82282.0,0.06992328]
[1743948028941,0.4229045,82283.0,82282.0,0.06992328]
[1743948029132,0.1429045,82283.0,82282.0,0.06992328]
[1743948029337,0.3829045,82283.0,82282.0,0.06992328]
[1743948029537,0.1429045,82283.0,82282.0,0.06928328]
[1743948029735,0.1429045,82283.0,82282.0,0.07008328]
[1743948029936,0.1429045,82283.0,82282.0,0.06928328]
[1743948030135,0.3929045,82283.0,82282.0,0.06928328]
[1743948030336,0.4229045,82283.0,82282.0,0.06928328]
[1743948030634,0.1429045,82283.0,82282.0,0.06928328]
[1743948034127,0.3929045,82283.0,82282.0,0.06928328]
[1743948034333,0.4029045,82283.0,82282.0,0.06928328]
[1743948034626,0.1429045,82283.0,82282.0,0.06928328]
[1743948035131,0.0578,82283.0,82282.0,0.06928328]
[1743948035335,0.01244672,82299.0,82282.0,0.06928328]
[1743948035336,0.0425448,82298.0,82294.0,0.0850928]
[1743948035535,0.00072,82294.0,82293.0,0.0850933]
[1743948035840,0.08527229,82297.0,82296.0,0.0850911]
[1743948036147,0.08595229,82297.0,82296.0,0.4465711]
[1743948036534,0.08595229,82297.0,82296.0,0.5003711]
[1743948036950,0.08695229,82297.0,82296.0,0.5003711]
[1743948037140,0.08695229,82297.0,82296.0,0.41528]
[1743948037339,0.08895229,82297.0,82296.0,0.41528]
[1743948037842,0.08895229,82297.0,82296.0,0.5003711]
[1743948038044,0.08695229,82297.0,82296.0,0.5003711]
[1743948038243,0.14605229,82297.0,82296.0,0.5003711]
[1743948038638,0.14605229,82297.0,82296.0,0.41528]
[1743948038834,0.42605229,82297.0,82296.0,0.41528]
[1743948039042,0.38605229,82297.0,82296.0,0.41528]
[1743948039243,0.14605229,82297.0,82296.0,0.5003711]
[1743948039947,0.14605229,82297.0,82296.0,0.1395711]
[1743948041646,0.06096219,82297.0,82296.0,0.1395711]
[1743948041848,0.00386219,82297.0,82296.0,0.1395711]
[1743948042141,0.00318219,82297.0,82296.0,0.1395711]
[1743948043150,0.08827229,82297.0,82296.0,0.05448]
[1743948043446,0.08895229,82297.0,82296.0,0.00068]
[1743948043837,0.14335229,82297.0,82296.0,0.00068]
[1743948044453,0.14335229,82297.0,82296.0,0.0857711]
[1743948044454,0.00386219,82297.0,82296.0,0.0857711]
[1743948044745,0.1074737,82319.0,82318.0,0.0850683]
[1743948044949,0.1081537,82319.0,82318.0,0.0850683]
[1743948045148,0.1081537,82319.0,82318.0,0.0858283]
[1743948045953,0.1081537,82319.0,82318.0,0.4466283]
[1743948046139,0.1081537,82319.0,82318.0,0.4996283]
[1743948046343,0.1081537,82319.0,82318.0,0.51631544]
[1743948046739,0.1091537,82319.0,82318.0,0.51631544]
[1743948046949,0.00018219,82327.0,82323.0,0.0850632]
[1743948047246,0.0802,82352.0,82328.0,0.0425286]
[1743948047247,0.3608,82339.0,82328.0,0.0425286]
[1743948047447,0.1508198,82346.0,82338.0,0.0425234]
[1743948047448,0.53992284,82346.0,82338.0,0.0425234]
[1743948047646,0.54056284,82346.0,82345.0,0.0850405]
[1743948047955,0.54056284,82346.0,82345.0,0.10324764]
[1743948048154,0.62560224,82346.0,82345.0,0.10324764]
[1743948048355,0.62560224,82346.0,82345.0,0.01820714]
[1743948048557,0.62560224,82346.0,82345.0,0.07108714]
[1743948049054,0.68100224,82346.0,82345.0,0.01816714]
[1743948049251,0.68100224,82346.0,82345.0,0.01668714]
[1743948049449,0.0850436,82342.0,82341.0,0.0568]
[1743948049652,0.0850477,82338.0,82337.0,0.00026219]
[1743948049849,0.0857277,82338.0,82337.0,0.00018219]
[1743948050049,0.0857277,82338.0,82337.0,0.00166219]
[1743948050351,0.11218,82338.0,82328.0,8e-05]
[1743948050548,0.0850559,82330.0,82329.0,0.01699744]
[1743948050748,0.4458559,82330.0,82329.0,0.01699744]
[1743948051160,0.5558559,82330.0,82329.0,0.01699744]
[1743948051457,0.5573559,82330.0,82329.0,0.01699744]
[1743948052154,0.6573559,82330.0,82329.0,0.01699744]
[1743948052856,0.6623559,82330.0,82329.0,0.01699744]
[1743948053060,0.6623559,82330.0,82329.0,0.01811744]
[1743948054155,0.6623559,82330.0,82329.0,0.01699744]
[1743948055159,0.6629959,82330.0,82329.0,0.01699744]
[1743948055551,0.0850601,82326.0,82325.0,0.0851407]
[1743948055861,0.0857001,82326.0,82325.0,8e-05]
[1743948056361,0.6565001,82326.0,82325.0,0.00116]
[1743948056553,0.6565001,82326.0,82325.0,8e-05]
[1743948056752,0.6605001,82326.0,82325.0,8e-05]
[1743948057057,0.4505001,82326.0,82325.0,0.0851411]
[1743948057449,0.4505001,82326.0,82325.0,0.00112]
[1743948057646,0.4505001,82326.0,82325.0,8e-05]
[1743948058551,0.4505001,82326.0,82325.0,0.00112]
[1743948058862,0.4505001,82326.0,82325.0,8e-05]
[1743948059956,0.4505001,82326.0,82325.0,0.0012]
[1743948060163,0.4505001,82326.0,82325.0,0.1092]
[1743948060361,0.4505001,82326.0,82325.0,0.10808]
[1743948060863,0.4505001,82326.0,82325.0,0.0544]
[1743948062158,0.0850621,82324.0,82323.0,8e-05]
[1743948062465,0.0850642,82322.0,82321.0,0.00018219]
[1743948063157,0.1982642,82322.0,82321.0,0.00018219]
[1743948063963,0.0850745,82312.0,82311.0,0.00060745]
[1743948064151,0.4458745,82312.0,82311.0,0.00060745]
[1743948065063,0.0850776,82309.0,82308.0,8e-05]
[1743948065259,0.0850776,82309.0,82304.0,8e-05]
[1743948065260,0.0850818,82305.0,82304.0,8e-05]
[1743948065456,0.0850828,82304.0,82303.0,0.2179146]
[1743948065660,0.4406628,82304.0,82303.0,0.2186746]
[1743948065954,0.0850952,82292.0,82288.0,0.36264041]
[1743948066159,0.4458983,82289.0,82288.0,0.36340041]
[1743948066364,0.4466183,82289.0,82288.0,0.00076]
[1743948067362,0.4466183,82289.0,82288.0,0.00176]
[1743948068465,0.5541183,82289.0,82288.0,0.00176]
[1743948069163,0.5541183,82289.0,82288.0,0.00076]
[1743948070459,0.0851035,82284.0,82283.0,8e-05]
[1743948070767,0.0857435,82284.0,82283.0,8e-05]
[1743948070966,0.0851066,82281.0,82280.0,0.08528969]
[1743948071165,0.0858266,82281.0,82280.0,0.00090219]
[1743948072361,0.1931266,82281.0,82280.0,0.00090219]
[1743948072763,0.1931266,82281.0,82280.0,0.08600979]
[1743948073067,0.1931266,82281.0,82280.0,0.05600219]
[1743948073268,0.1931266,82281.0,82280.0,0.05800219]
[1743948073467,0.1931266,82281.0,82280.0,0.06000219]
[1743948074868,0.0858266,82281.0,82280.0,0.14510979]
[1743948075371,0.00072,82281.0,82280.0,0.14510979]
[1743948075760,0.0858266,82281.0,82280.0,0.14510979]
[1743948075961,0.0858266,82281.0,82280.0,1.64510979]
[1743948076968,0.00072,82281.0,82280.0,1.64510979]
[1743948077170,0.3608,82282.0,82281.0,0.0851066]
[1743948077369,0.36152,82282.0,82281.0,0.0858266]
[1743948077565,0.36152,82282.0,82281.0,0.1961266]
[1743948077766,0.4466256,82282.0,82281.0,0.11102]
[1743948077961,0.4466256,82282.0,82281.0,0.05612]
[1743948078358,0.5036256,82282.0,82281.0,0.05612]
[1743948078560,0.5036256,82282.0,82281.0,0.0594]
[1743948078969,0.5036256,82282.0,82281.0,0.06016]
[1743948079971,0.5036256,82282.0,82281.0,0.1452666]
[1743948080171,0.5036256,82282.0,82281.0,0.2025666]
[1743948080967,0.5036256,82282.0,82281.0,0.11746]
[1743948081271,0.5036256,82282.0,82281.0,0.1452666]
[1743948081458,0.5036256,82282.0,82281.0,0.06016]
[1743948081658,0.5036256,82282.0,82281.0,0.1445066]
[1743948081864,0.5036256,82282.0,82281.0,0.1453066]
[1743948082969,0.5036256,82282.0,82281.0,0.1981066]
[1743948084977,0.5036256,82282.0,82281.0,0.113]
[1743948085476,0.5036256,82282.0,82281.0,0.0594]
[1743948085675,0.5036256,82282.0,82281.0,0.004]
[1743948085872,0.085118,82270.0,82259.0,0.3608]
[1743948086073,0.085838,82270.0,82269.0,0.10072]
[1743948087070,0.086838,82270.0,82269.0,0.10272]
[1743948087374,0.086838,82270.0,82269.0,0.10372]
[1743948089374,0.085838,82270.0,82269.0,0.10172]
[1743948090975,0.085838,82270.0,82269.0,0.186839]
[1743948091681,0.085838,82270.0,82269.0,0.296539]
[1743948092067,0.085838,82270.0,82269.0,0.15592]
[1743948092272,0.085838,82270.0,82269.0,0.241039]
[1743948092468,0.085838,82270.0,82269.0,0.15592]
[1743948093471,0.192738,82270.0,82269.0,0.15592]
[1743948094573,0.192738,82270.0,82269.0,0.10172]
[1743948094975,0.452738,82270.0,82269.0,0.10172]
[1743948095277,0.0851221,82266.0,82265.0,8e-05]
[1743948095485,0.0851263,82262.0,82261.0,0.0560823]
[1743948095679,0.0858863,82262.0,82261.0,0.0569223]
[1743948097577,0.0858863,82262.0,82261.0,0.0010223]
[1743948097578,0.3258863,82262.0,82261.0,0.0010223]
[1743948097778,0.6866863,82262.0,82261.0,0.0002623]
[1743948098082,0.6866863,82262.0,82261.0,0.0001823]
[1743948098685,0.6926863,82262.0,82261.0,0.0001823]
[1743948099674,0.6976863,82262.0,82261.0,0.0001823]
[1743948100275,0.0851304,82258.0,82257.0,8e-05]
[1743948100480,0.0857704,82258.0,82257.0,8e-05]
[1743948101187,0.1944704,82258.0,82257.0,8e-05]
[1743948101484,0.1974704,82258.0,82257.0,8e-05]
[1743948101992,0.2014704,82258.0,82257.0,8e-05]
[1743948102376,0.0851366,82252.0,82251.0,0.0537]
[1743948102675,0.0857766,82252.0,82251.0,0.0537]
[1743948103783,0.0851376,82251.0,82250.0,8e-05]
[1743948103989,0.0851397,82249.0,82248.0,0.0524]
[1743948104188,0.0858597,82249.0,82248.0,0.05312]